lending/lending_fUSD_20251114
["ID","MTS","AMOUNT","RATE_DAILY","PERIOD"]
[393942274,1763119838521,-151.0,0.00017345,2]
[393942275,1763119838530,-1104.16044283,0.00017353,2]
[393942276,1763119838539,-293.2436282,0.00017354,2]
[393942277,1763119838548,-151.0,0.00017367,2]
[393942278,1763119838557,-1000.0,0.00017368,2]
[393942279,1763119838567,-151.0,0.00017388,2]
[393942280,1763119838576,-507.26035212,0.00017399,2]
[393942281,1763119838585,-293.2436282,0.00017445,2]
[393942282,1763119838595,-507.26035212,0.00017473,2]
[393942283,1763119838604,-166.66,0.00017535,2]
[393942284,1763119838613,-293.2436282,0.00017536,2]
[393942285,1763119838622,-507.26035212,0.00017546,2]
[393942286,1763119838632,-288.41,0.00017572,2]
[393942287,1763119838641,-507.26035212,0.00017619,2]
[393942288,1763119838650,-821.0,0.0001768,2]
[393942289,1763119838659,-1598.0,0.0001768,2]
[393942290,1763119838668,-1275.0,0.0001768,2]
[393942291,1763119838677,-814.0,0.0001768,2]
[393942292,1763119838687,-907.0,0.0001768,2]
[393942293,1763119838697,-1190.0,0.0001768,2]
[393942294,1763119838706,-3429.0,0.0001768,2]
[393942295,1763119838716,-575.0,0.0001768,2]
[393942296,1763119838727,-608.0,0.0001768,2]
[393942297,1763119838737,-507.26035212,0.00017692,2]
[393942298,1763119838746,-507.26035212,0.00017766,2]
[393942299,1763119838756,-12690.88,0.00017777,2]
[393942300,1763119838766,-605.791,0.00017799,2]
[393942301,1763119838775,-2195.05858,0.0001782,2]
[393942302,1763119838785,-155.31989855,0.00017824,2]
[393942303,1763119838795,-1076.579,0.00017824,2]
[393942304,1763119838805,-300.0,0.00017835,2]
[393942305,1763119838814,-507.26035212,0.00017839,2]
[393942306,1763119838823,-288.41,0.00017846,2]
[393942307,1763119838832,-200.0,0.00017856,2]
[393942308,1763119838842,-166.66,0.0001789,2]
[393942309,1763119838851,-168.7156865,0.000179,2]
[393942310,1763119838861,-1299.82959828,0.000179,2]
[393942311,1763119838872,-1228.0,0.000179,2]
[393942312,1763119838881,-3132.49877934,0.000179,2]
[393942313,1763119838891,-347.77442966,0.000179,2]
[393942314,1763119838901,-202.53166992,0.000179,2]
[393942315,1763119838911,-151.43976194,0.000179,3]
[393942316,1763119838921,-1299.82959827,0.00017902,2]
[393942317,1763119838930,-1299.82959827,0.00017904,2]
[393942318,1763119838940,-1299.82959827,0.00017906,2]
[393942319,1763119838950,-1299.82959827,0.00017908,2]
[393942320,1763119838959,-1299.82959827,0.0001791,2]
[393942321,1763119838970,-1299.82959827,0.00017912,2]
[393942322,1763119838979,-507.26035212,0.00017912,2]
[393942323,1763119838989,-174.01365812,0.00017973,2]
[393942324,1763119838998,-200.0,0.00017984,2]
[393942325,1763119839008,-150.0,0.00017984,2]
[393942326,1763119839018,-500.0,0.00017984,2]
[393942327,1763119839027,-150.0,0.00017984,2]
[393942328,1763119839036,-524.0,0.00017984,2]
[393942329,1763119839046,-500.0,0.00017984,2]
[393942330,1763119839056,-500.0,0.00017984,2]
[393942331,1763119839066,-150.0,0.00017984,2]
[393942332,1763119839076,-150.0,0.00017984,2]
[393942333,1763119839085,-150.0,0.00017984,2]
[393942334,1763119839095,-150.0,0.00017984,2]
[393942335,1763119839104,-150.0,0.00017984,2]
[393942336,1763119839114,-200.0,0.00017984,2]
[393942337,1763119839124,-150.0,0.00017984,2]
[393942338,1763119839134,-1747.57741749,0.0001799,2]
[393942339,1763119839143,-1747.57741749,0.0001799,2]
[393942340,1763119839152,-1002.0323,0.00017999,2]
[393942341,1763119839166,-300.0,0.00017999,2]
[393942342,1763119839176,-3096.0,0.00018,2]
[393942343,1763119839186,-1538165.82186645,0.00018,2]
[393942344,1763119839196,-150.0,0.00018,2]
[393942345,1763119839207,-388.63302984,0.00018,2]
[393942346,1763119839217,-200.0,0.00018,2]
[393942347,1763119839229,-184875.5982708,0.00018,2]
[393942348,1763119839239,-200.0,0.00018,2]
[393942349,1763119839249,-200.0,0.00018,2]
[393942350,1763119839258,-9037810.14142892,0.00018,2]
[393942351,1763119839274,-30536.99265918,0.00018,2]
[393942352,1763119839290,-5739.18585998,0.00018,2]
[393942353,1763119839303,-28057.1412,0.00018,2]
[393942355,1763119839563,-1447.98704239,0.00017622,2]
[393942356,1763119839830,-456.18826742,0.00017622,2]
[393942361,1763119839987,-240.82469019,0.00017622,2]
[393942362,1763119839997,-293.2436282,0.00017627,2]
[393942364,1763119840007,-4358036.27346814,0.00018,2]
[393942366,1763119840019,-304.9245,0.00018,2]
[393942378,1763119845949,-500.0,0.00016999,2]
[393942379,1763119845961,-500.0,0.00016999,2]
[393942380,1763119845973,-500.0,0.00016999,2]
[393942381,1763119845983,-500.0,0.00016999,2]
[393942382,1763119845995,-500.0,0.00016999,2]
[393942383,1763119846007,-500.0,0.00016999,2]
[393942384,1763119846019,-500.0,0.00016999,2]
[393942385,1763119846030,-500.0,0.00016999,2]
[393942386,1763119846042,-500.0,0.00016999,2]
[393942387,1763119846053,-261.54881855,0.00016999,2]
[393942388,1763119846064,-63.45118145,0.00016999,2]
[393942391,1763120176965,508.89,0.00041183,30]
[393942405,1763120660039,-999.0,0.00016714,3]
[393942406,1763120660069,-200.0,0.000176,6]
[393942407,1763120660095,-500.0,0.000177,6]
[393942408,1763120660126,-700.0,0.000178,6]
[393942409,1763120660153,-601.0,0.000179,6]
[393942430,1763121031699,-150.0,0.00016702,2]
[393942431,1763121031709,-300.0,0.00016706,2]
[393942432,1763121031718,-163.54,0.0001671,2]
[393942433,1763121031727,-191.12,0.00016712,2]
[393942434,1763121031738,-158.8025,0.00016718,2]
[393942435,1763121031753,-41.1975,0.00016718,2]
[393942436,1763121031763,-250.0,0.00016749,2]
[393942437,1763121031772,-500.0,0.00016749,2]
[393942438,1763121031781,-193.0,0.00016999,2]
[393942439,1763121031792,-300.0,0.00016999,2]
[393942440,1763121031801,-3518.4525,0.00017,2]
[393942441,1763121031908,-29643.1966,0.00017,2]
[393942442,1763121031918,-1473.58288999,0.00017,2]
[393942443,1763121031927,-442.44462829,0.00017,2]
[393942444,1763121031937,-2500.0,0.00017,2]
[393942445,1763121031947,-175.94617692,0.00017,2]
[393942446,1763121031958,-192.28,0.00017099,2]
[393942447,1763121031967,-500.0,0.00017099,2]
[393942448,1763121031976,-500.0,0.00017099,2]
[393942449,1763121031985,-510.26419869,0.00017099,2]
[393942450,1763121031996,-386.97764236,0.00017099,2]
[393942451,1763121032005,-228.24769483,0.00017099,2]
[393942452,1763121032014,-500.0,0.00017099,2]
[393942453,1763121032024,-500.0,0.00017099,2]
[393942454,1763121032036,-500.0,0.00017099,2]
[393942455,1763121032046,-500.0,0.00017099,2]
[393942456,1763121032055,-500.0,0.00017099,2]
[393942457,1763121032064,-500.0,0.00017099,2]
[393942459,1763121032073,-500.0,0.00017099,2]
[393942461,1763121032082,-500.0,0.00017099,2]
[393942463,1763121032092,-500.0,0.00017099,2]
[393942465,1763121032101,-500.0,0.00017099,2]
[393942467,1763121032111,-500.0,0.00017099,2]
[393942469,1763121032120,-500.0,0.00017099,2]
[393942471,1763121032130,-288.05984857,0.00017099,2]
[393942473,1763121032139,-500.0,0.00017099,2]
[393942475,1763121032148,-500.0,0.00017099,2]
[393942477,1763121032158,-500.0,0.00017099,2]
[393942479,1763121032168,-500.0,0.00017099,2]
[393942481,1763121032178,-500.0,0.00017099,2]
[393942483,1763121032189,-500.0,0.00017099,2]
[393942485,1763121032200,-500.0,0.00017099,2]
[393942487,1763121032211,-500.0,0.00017099,2]
[393942489,1763121032220,-500.0,0.00017099,2]
[393942491,1763121032229,-500.0,0.00017099,2]
[393942492,1763121032239,-499.99999999,0.00017099,2]
[393942493,1763121032248,-500.0,0.00017099,2]
[393942494,1763121032258,-500.0,0.00017099,2]
[393942495,1763121032267,-500.0,0.00017099,2]
[393942496,1763121032276,-500.0,0.00017099,2]
[393942497,1763121032286,-500.0,0.00017099,2]
[393942498,1763121032295,-500.0,0.00017099,2]
[393942499,1763121032304,-500.0,0.00017099,2]
[393942500,1763121032313,-500.0,0.00017099,2]
[393942501,1763121032322,-500.0,0.00017099,2]
[393942502,1763121032332,-500.0,0.00017099,2]
[393942503,1763121032341,-500.0,0.00017099,2]
[393942504,1763121032350,-632.67959257,0.00017099,2]
[393942505,1763121032362,-500.0,0.00017099,2]
[393942506,1763121032372,-500.0,0.00017099,2]
[393942507,1763121032381,-500.0,0.00017099,2]
[393942508,1763121032390,-633.9069698,0.00017099,2]
[393942509,1763121032400,-500.0,0.00017099,2]
[393942510,1763121032409,-500.0,0.00017099,2]
[393942511,1763121032418,-500.0,0.00017099,2]
[393942512,1763121032428,-222.17117875,0.00017099,2]
[393942513,1763121032439,-321.10023504,0.00017099,2]
[393942514,1763121032449,-500.0,0.00017099,2]
[393942515,1763121032458,-500.0,0.00017099,2]
[393942516,1763121032468,-500.0,0.00017099,2]
[393942517,1763121032477,-500.0,0.00017099,2]
[393942518,1763121032486,-500.0,0.00017099,2]
[393942519,1763121032495,-500.0,0.00017099,2]
[393942520,1763121032505,-585.4206818,0.00017099,2]
[393942521,1763121032514,-500.0,0.00017099,2]
[393942522,1763121032523,-275024.27213232,0.000171,2]
[393942523,1763121032535,-19872.22254324,0.000171,2]
[393942524,1763121032546,-387.16467116,0.000171,2]
[393942527,1763121037796,-960.35,0.000171,2]
[393942528,1763121037901,-288.06,0.000171,2]
[393942700,1763121039746,-3845.56,0.000171,2]
[393942793,1763121044101,-119622.37065328,0.000171,2]
[393942794,1763121044111,-178.82745114,0.000171,2]
[393942795,1763121044120,-1000.0,0.000172,2]
[393942796,1763121044129,-2000.0,0.000173,2]
[393942797,1763121044139,-192.28,0.00017373,2]
[393942798,1763121044147,-168.0,0.00017589,2]
[393942799,1763121044156,-230.0,0.00017599,2]
[393942801,1763121044165,-192.28697047,0.00017647,2]
[393942803,1763121044174,-500.0,0.00017741,2]
[393942805,1763121044183,-500.0,0.00017741,2]
[393942807,1763121044193,-163.54,0.00017754,2]
[393942809,1763121044203,-230.0,0.00017784,2]
[393942811,1763121044216,-1318.0,0.00017791,2]
[393942814,1763121044225,-608.0,0.00017791,2]
[393942817,1763121044234,-3429.0,0.00017791,2]
[393942819,1763121044243,-575.0,0.00017791,2]
[393942821,1763121044252,-1190.0,0.00017791,2]
[393942822,1763121044261,-907.0,0.00017791,2]
[393942823,1763121044270,-1598.0,0.00017791,2]
[393942824,1763121044279,-821.0,0.00017791,2]
[393942825,1763121044288,-1275.0,0.00017791,2]
[393942826,1763121044297,-814.0,0.00017791,2]
[393942827,1763121044306,-2145.0,0.00017791,2]
[393942828,1763121044315,-6486.0,0.00017791,2]
[393942830,1763121044325,-6669.0,0.00017791,2]
[393942832,1763121044334,-560.0,0.00017791,2]
[393942834,1763121044342,-861.263,0.00017846,2]
[393942836,1763121044351,-200.0,0.00017856,2]
[393942838,1763121044360,-168.7156865,0.000179,2]
[393942840,1763121044368,-163.26898755,0.000179,2]
[393942841,1763121044378,-150.0,0.00017984,2]
[393942843,1763121044387,-500.0,0.00017984,2]
[393942844,1763121044396,-500.0,0.00017984,2]
[393942845,1763121044404,-150.0,0.00017984,2]
[393942846,1763121044413,-150.0,0.00017984,2]
[393942847,1763121044422,-629.0,0.00017984,2]
[393942848,1763121044431,-150.0,0.00017984,2]
[393942849,1763121044439,-150.0,0.00017984,2]
[393942850,1763121044449,-453.0,0.00017984,2]
[393942851,1763121044458,-150.0,0.00017984,2]
[393942852,1763121044467,-150.0,0.00017984,2]
[393942853,1763121044476,-360.30042686,0.0001799,2]
[393942855,1763121044484,-183.55934418,0.0001799,2]
[393942856,1763121044494,-500.0,0.00017999,2]
[393942857,1763121044503,-414.79117042,0.00017999,2]
[393942858,1763121044511,-500.0,0.00017999,2]
[393942860,1763121044521,-500.0,0.00017999,2]
[393942861,1763121044531,-500.0,0.00017999,2]
[393942862,1763121044540,-500.0,0.00017999,2]
[393942863,1763121044549,-500.0,0.00017999,2]
[393942864,1763121044558,-500.0,0.00017999,2]
[393942865,1763121044568,-591.0258756,0.00017999,2]
[393942866,1763121044580,-3702.0,0.00018,2]
[393942867,1763121044590,-234101.65269983,0.00018,2]
[393942868,1763121044629,-4847.06400167,0.00018,2]
[393942869,1763121044642,-5895.80130257,0.00018,2]
[393942871,1763121044656,-530.6,0.00018,2]
[393942872,1763121044670,-72349.05265242,0.00018,2]
[393942873,1763121044681,-751.75529865,0.00018,2]
[393942874,1763121044692,-867.26068256,0.00018,2]
[393942876,1763121044704,-324.47184012,0.00018,2]
[393942878,1763121044715,-4693.5,0.00018,2]
[393942891,1763121045863,-546.99819011,0.00016999,2]
[393942904,1763121149633,2430.11,0.00016438,2]
[393942910,1763121385784,-219.70150344,0.000169,2]
[393942911,1763121385807,-176.8127633,0.000169,2]
[393942912,1763121385828,-175.94617692,0.000169,2]
[393942913,1763121385849,-159.77338638,0.00016998,2]
[393942914,1763121385871,-479.53052164,0.00016998,2]
[393942915,1763121385899,-500.0,0.00016998,2]
[393942916,1763121385925,-500.0,0.00016998,2]
[393942917,1763121385948,-500.0,0.00016998,2]
[393942918,1763121385973,-500.0,0.00016998,2]
[393942919,1763121385994,-500.0,0.00016998,2]
[393942920,1763121386027,-500.0,0.00016998,2]
[393942921,1763121386050,-500.0,0.00016998,2]
[393942922,1763121386070,-196.97575763,0.00016998,2]
[393942923,1763121386091,-500.0,0.00016998,2]
[393942924,1763121386114,-626.30816497,0.00016998,2]
[393942925,1763121386136,-500.0,0.00016998,2]
[393942926,1763121386158,-500.0,0.00016998,2]
[393942927,1763121386180,-250.54273015,0.00016998,2]
[393942928,1763121386202,-500.0,0.00016998,2]
[393942929,1763121386231,-500.0,0.00016998,2]
[393942930,1763121386253,-500.0,0.00016998,2]
[393942931,1763121386276,-500.0,0.00016998,2]
[393942932,1763121386299,-500.0,0.00016998,2]
[393942933,1763121386326,-500.0,0.00016998,2]
[393942934,1763121386349,-500.0,0.00016998,2]
[393942935,1763121386372,-272.47218087,0.00016998,2]
[393942936,1763121386402,-500.0,0.00016998,2]
[393942937,1763121386429,-500.0,0.00016998,2]
[393942938,1763121386455,-500.0,0.00016998,2]
[393942939,1763121386484,-500.0,0.00016998,2]
[393942940,1763121386514,-500.0,0.00016998,2]
[393942941,1763121386545,-500.0,0.00016998,2]
[393942942,1763121386584,-500.0,0.00016998,2]
[393942943,1763121386613,-17.9368147,0.00016998,2]
[393942945,1763121445888,166.66,0.00016116,2]
[393942946,1763121446101,166.66,0.00016455,2]
[393942948,1763121555648,269.81713591,0.000164,2]
[393942949,1763121568165,485.39,8.416e-05,2]
[393942950,1763121568372,485.39,8.859e-05,2]
[393942951,1763121568612,485.39,9.302e-05,2]
[393942952,1763121568814,485.39,9.745e-05,2]
[393942953,1763121569017,485.39,0.00010188,2]
[393942954,1763121569251,485.39,0.00010631,2]
[393942955,1763121569565,485.39,0.00011074,2]
[393942956,1763121569784,485.39,0.00011517,2]
[393942957,1763121569985,485.39,0.0001196,2]
[393942958,1763121570232,485.39,0.00012403,2]
[393942959,1763121570468,485.39,0.00012846,2]
[393942960,1763121570913,485.39,0.00013289,2]
[393942961,1763121571129,485.39,0.00013732,2]
[393942962,1763121571337,485.39,0.00014175,2]
[393942963,1763121571753,485.39,0.00014618,2]
[393942964,1763121572168,485.39,0.00015061,2]
[393942965,1763121572204,485.39,0.00015504,2]
[393942966,1763121572406,485.39,0.00015947,2]
[393942967,1763121572625,485.39,0.00016389,2]
[393942969,1763121738135,411.79,0.00041074,30]
[393942970,1763121761862,232.282002,0.00016602,2]
[393942972,1763121886781,29927.979999,0.00041074,30]
[393942973,1763121929216,9767.727998,0.00016428,2]
[393942974,1763121929242,10000.01,0.00016428,2]
[393942975,1763121929265,1629.062002,0.00016428,2]
[393942976,1763122201044,1200.0,0.0003,120]
[393942988,1763122232059,-200.0,0.00016686,2]
[393942989,1763122232070,-166.13195705,0.00016686,2]
[393942990,1763122232082,-138.86804295,0.00016686,2]
[393942991,1763122232091,-398.29195705,0.00016694,2]
[393942992,1763122232104,-55.70804295,0.00016694,2]
[393942993,1763122232115,-166.66,0.00016794,2]
[393942994,1763122232124,-330.69324085,0.00016832,2]
[393942995,1763122232143,-154.69675915,0.00016832,2]
[393942996,1763122232152,-470.7871,0.00016899,2]
[393942997,1763122232161,-1847.64311808,0.000169,2]
[393942998,1763122232173,-159.13148697,0.000169,2]
[393942999,1763122232182,-175.94617692,0.000169,2]
[393943000,1763122232191,-500.0,0.00016973,2]
[393943001,1763122232201,-500.0,0.00016973,2]
[393943002,1763122232211,-500.0,0.00016973,2]
[393943003,1763122232220,-544.54070605,0.00016973,2]
[393943004,1763122232229,-500.96758526,0.00016973,2]
[393943005,1763122232238,-608.37698903,0.00016973,2]
[393943006,1763122232247,-500.0,0.00016973,2]
[393943007,1763122232257,-500.0,0.00016973,2]
[393943008,1763122232266,-500.0,0.00016973,2]
[393943009,1763122232276,-501.20341473,0.00016973,2]
[393943010,1763122232285,-501.21542673,0.00016973,2]
[393943011,1763122232295,-500.0,0.00016973,2]
[393943012,1763122232305,-497.32454221,0.00016973,2]
[393943013,1763122232314,-40228.32,0.00016986,2]
[393943014,1763122232323,-151.0,0.00016989,2]
[393943015,1763122232333,-151.0,0.00016989,2]
[393943016,1763122232342,-151.0,0.00016989,2]
[393943017,1763122232351,-151.0,0.00016989,2]
[393943018,1763122232360,-151.0,0.00016989,2]
[393943019,1763122232371,-151.0,0.00016989,2]
[393943020,1763122232382,-151.0,0.00016989,2]
[393943021,1763122232392,-151.0,0.00016989,2]
[393943022,1763122232609,-151.0,0.00016989,2]
[393943023,1763122232622,-151.0,0.00016989,2]
[393943024,1763122232631,-151.0,0.00016989,2]
[393943025,1763122232640,-296.86012071,0.00016989,2]
[393943026,1763122232650,-1435.93,0.00016989,2]
[393943027,1763122232659,-482.0631853,0.00016998,2]
[393943028,1763122232669,-500.0,0.00016998,2]
[393943029,1763122232678,-500.0,0.00016998,2]
[393943030,1763122232688,-500.0,0.00016998,2]
[393943031,1763122232697,-273.16622399,0.00016998,2]
[393943032,1763122232706,-500.0,0.00016998,2]
[393943033,1763122232715,-500.0,0.00016998,2]
[393943034,1763122232725,-500.0,0.00016998,2]
[393943035,1763122232734,-500.0,0.00016998,2]
[393943036,1763122232743,-500.0,0.00016998,2]
[393943037,1763122232752,-500.0,0.00016998,2]
[393943038,1763122232761,-500.0,0.00016998,2]
[393943039,1763122232771,-500.0,0.00016998,2]
[393943040,1763122232780,-500.0,0.00016998,2]
[393943041,1763122232789,-500.0,0.00016998,2]
[393943042,1763122232798,-500.0,0.00016998,2]
[393943043,1763122232807,-500.0,0.00016998,2]
[393943044,1763122232816,-500.0,0.00016998,2]
[393943045,1763122232824,-500.0,0.00016998,2]
[393943046,1763122232833,-500.0,0.00016998,2]
[393943047,1763122232843,-500.0,0.00016998,2]
[393943048,1763122232852,-500.0,0.00016998,2]
[393943049,1763122232860,-500.0,0.00016998,2]
[393943050,1763122232871,-151.0,0.00016998,2]
[393943051,1763122232880,-222.77,0.00016998,2]
[393943052,1763122232889,-193292.60718845,0.00016999,2]
[393943053,1763122233067,-17363.54799916,0.00016999,2]
[393943054,1763122233078,-3656.82895636,0.00016999,2]
[393943055,1763122233088,-961.5187162,0.00016999,2]
[393943056,1763122233099,-700.36150344,0.00016999,2]
[393943058,1763122237903,-38418.53480109,0.00016999,2]
[393943059,1763122237975,-149909.63073111,0.00016999,2]
[393943060,1763122237986,-1399.95,0.00016999,2]
[393943061,1763122238035,-11030.80044668,0.00016999,2]
[393943062,1763122238146,-436.0271918,0.00016999,2]
[393943071,1763122240081,-2283.1942756,0.00016999,2]
[393943072,1763122240090,-1000.0,0.00017,2]
[393943073,1763122240100,-250.0,0.00017,2]
[393943074,1763122240110,-500.0,0.00017096,2]
[393943075,1763122240120,-500.0,0.00017099,2]
[393943076,1763122240130,-500.0,0.00017099,2]
[393943077,1763122240139,-500.0,0.00017099,2]
[393943078,1763122240149,-289.28844386,0.00017099,2]
[393943079,1763122240158,-319.97838066,0.00017099,2]
[393943080,1763122240171,-500.0,0.00017099,2]
[393943081,1763122240184,-500.0,0.00017099,2]
[393943082,1763122240194,-500.0,0.00017099,2]
[393943083,1763122240203,-667.765856,0.000171,2]
[393943084,1763122240212,-166.66,0.00017133,2]
[393943085,1763122240222,-222.78,0.00017272,2]
[393943087,1763122240231,-847.22382221,0.000173,2]
[393943088,1763122240242,-456.0209164,0.000173,2]
[393943089,1763122240257,-696.75526139,0.000173,2]
[393943090,1763122240266,-226.0,0.00017469,2]
[393943091,1763122240275,-166.66,0.00017473,2]
[393943093,1763122240284,-226.0,0.00017518,2]
[393943095,1763122240294,-226.0,0.00017538,2]
[393943097,1763122240304,-131.17542701,0.00017555,2]
[393943098,1763122240315,-48.76457299,0.00017555,2]
[393943099,1763122240324,-1190.0,0.00017651,2]
[393943100,1763122240334,-907.0,0.00017651,2]
[393943101,1763122240344,-27.13542701,0.00017651,2]
[393943102,1763122240355,-854.46623546,0.00017651,2]
[393943103,1763122240368,-1083.81940273,0.00017651,2]
[393943130,1763122245012,-4703.5789348,0.00017651,2]
[393943131,1763122245023,-560.0,0.00017651,2]
[393943132,1763122245033,-2145.0,0.00017651,2]
[393943133,1763122245042,-6486.0,0.00017651,2]
[393943134,1763122245051,-226.0,0.00017665,2]
[393943135,1763122245060,-1706.164194,0.00017667,2]
[393943136,1763122245070,-226.0,0.00017676,2]
[393943137,1763122245079,-226.0,0.00017775,2]
[393943138,1763122245089,-226.0,0.00017776,2]
[393943139,1763122245098,-200.0,0.00017791,2]
[393943140,1763122245107,-150.0,0.00017791,2]
[393943141,1763122245117,-168.895,0.00017791,2]
[393943142,1763122245134,-150.0,0.00017791,2]
[393943143,1763122245144,-150.0,0.00017791,2]
[393943144,1763122245153,-150.0,0.00017791,2]
[393943145,1763122245164,-150.0,0.00017791,2]
[393943146,1763122245174,-608.0,0.00017791,2]
[393943147,1763122245184,-3429.0,0.00017791,2]
[393943148,1763122245195,-1318.0,0.00017791,2]
[393943149,1763122245204,-575.0,0.00017791,2]
[393943150,1763122245213,-1598.0,0.00017791,2]
[393943151,1763122245222,-821.0,0.00017791,2]
[393943152,1763122245231,-1275.0,0.00017791,2]
[393943153,1763122245240,-814.0,0.00017791,2]
[393943154,1763122245249,-166.66,0.00017812,2]
[393943155,1763122245259,-871.733,0.00017835,2]
[393943156,1763122245268,-176.232,0.00017835,2]
[393943157,1763122245279,-200.0,0.00017856,2]
[393943158,1763122245288,-226.0,0.00017879,2]
[393943160,1763122245297,-168.7156865,0.000179,2]
[393943162,1763122245307,-163.26898755,0.000179,2]
[393943164,1763122245316,-1829.21549,0.0001791,2]
[393943166,1763122245326,-226.0,0.00017916,2]
[393943168,1763122245335,-226.0,0.00017917,2]
[393943170,1763122245344,-11009.0809925,0.00017956,2]
[393943172,1763122245353,-39637.8765015,0.00017956,2]
[393943174,1763122245363,-226.0,0.00017969,2]
[393943176,1763122245377,-2805.7453943,0.00017982,2]
[393943178,1763122245386,-500.0,0.00017984,2]
[393943180,1763122245394,-200.0,0.00017984,2]
[393943182,1763122245404,-200.0,0.00017984,2]
[393943184,1763122245414,-200.0,0.00017984,2]
[393943186,1763122245423,-150.0,0.00017984,2]
[393943188,1763122245432,-434.0,0.00017984,2]
[393943190,1763122245442,-500.0,0.00017984,2]
[393943192,1763122245451,-500.0,0.00017984,2]
[393943194,1763122245460,-500.0,0.00017984,2]
[393943196,1763122245469,-641.0,0.00017984,2]
[393943198,1763122245478,-150.0,0.00017984,2]
[393943200,1763122245488,-500.0,0.00017984,2]
[393943202,1763122245497,-500.0,0.00017984,2]
[393943204,1763122245506,-500.0,0.00017999,2]
[393943206,1763122245515,-500.0,0.00017999,2]
[393943208,1763122245525,-2968.0,0.00018,2]
[393943210,1763122245534,-774559.76664166,0.00018,2]
[393943212,1763122245545,-200977.0685811,0.00018,2]
[393943214,1763122245563,-572.15544408,0.00018,2]
[393943216,1763122245574,-407.26322217,0.00018,2]
[393943220,1763122246107,-70587.5967696,0.00018,2]
[393943221,1763122246329,-4819.80331269,0.00018,2]
[393943224,1763122246386,-15670.01085012,0.00018,2]
[393943341,1763122275345,150.0,0.00027397,120]
[393943342,1763122275546,150.0,0.00027424,120]
[393943343,1763122275746,150.0,0.00027452,120]
[393943344,1763122275913,150.0,0.00027479,120]
[393943345,1763122276085,150.0,0.00027507,120]
[393943346,1763122276270,250.0,0.00027534,120]
[393943349,1763122285501,1000.0,0.00013699,2]
[393943350,1763122325682,151.0,0.00041074,30]
[393943351,1763122325713,259.20356747,0.00041074,30]
[393943352,1763122325757,500.0,0.00041074,30]
[393943353,1763122325787,200.0,0.00041074,30]
[393943354,1763122325820,250.0,0.00041074,30]
[393943355,1763122325854,200.0,0.00041074,30]
[393943356,1763122326046,520.0,0.00041074,30]
[393943357,1763122326194,151.0,0.00041074,30]
[393943358,1763122326225,151.0,0.00041074,30]
[393943359,1763122326256,207.4,0.00041074,30]
[393943360,1763122326288,500.0,0.00041074,30]
[393943361,1763122326375,250.0,0.00041074,30]
[393943362,1763122326417,207.4,0.00041074,30]
[393943363,1763122326684,539.24,0.00041074,30]
[393943364,1763122326811,151.0,0.00041074,30]
[393943365,1763122326874,500.0,0.00041074,30]
[393943366,1763122326905,215.0738,0.00041074,30]
[393943367,1763122327019,215.0738,0.00041074,30]